Cogmind - Beta 17 @@@ ROGUE MODE // 2026.08.05 @ 16:38:46 Player: Lazz Result: Destroyed by S-43 Plague with Heavy Machine Gun Performance ------------- Evolutions (8) 4000 Regions Visited (13) 2600 Robots Destroyed (44) 220 Value Destroyed (1044) 1044 Prototype IDs (26) 520 Alien Tech Used (0) 0 Bonus (1393) 1393 TOTAL SCORE: 9777 Bonus ------- Follower Combat Kills 93 Entered DSFs 1000 Aligned with FarCom 300 Cogmind --------- Core Integrity 0/1450 Matter 0/300 Energy 100/100 System Corruption 13% Temperature Cool (0) Movement Flying (40) Location -2/Research Parts ------- > --- POWER (2) -------- (None) > --- PROPULSION (9) --- Biomechanical Wings > --- UTILITY (8) ------ (None) > --- WEAPON (4) ------- (None) > --- INVENTORY (5) ---- Advanced Heavy Treads Advanced Heavy Treads Peak State ------------ > --- POWER ------------ Micro Antimatter Reactor > --- PROPULSION ------- Compact Wheel Biomechanical Wings Biomechanical Wings Biomechanical Wings > --- UTILITY ---------- Lightpack 2.0 Improved Terrain Scanner Improved Terrain Scan Processor Improved Terrain Scan Processor > --- WEAPON ----------- Tactical Quantum Warhead Great Axe > --- INVENTORY -------- Centrium Wheel Phase Shifter Layered Medium Armor Plating Improved Focal Shield Advanced Focal Shield Hacking Suite Authchip [Propulsion] Authchip [Propulsion] Authchip [Propulsion] Authchip [Device] Authchip [Device] Authchip [Processor] Authchip [Processor] Authchip [Armor] Authchip [Armor] Authchip [Armor] Authchip [Armor] Improved Corruption Screen Advanced Recalibrator Tesla Rifle Heavy Laser Heavy Phase Cannon Magnetic Acceleration Cannon Hardcell Cannon Hardcell Cannon Hardcell Cannon Improved Proton Missile Launcher [Rating: 92] Favorites ----------- Power Ion Engine Engine Ion Engine Power Core Light Nuclear Core Reactor Micro Antimatter Reactor Propulsion Biomechanical Wings Treads Light Treads Leg Aluminum Leg Wheel Compact Wheel Hover Unit Improved Airjet Flight Unit Biomechanical Wings Utility Improved Terrain Scan Processor Device Improved Terrain Scanner Storage Medium Storage Unit Processor Improved Terrain Scan Processor Hackware Hacking Suite Protection Light Armor Plating Weapon Light Assault Rifle Energy Gun Small Laser Ballistic Gun Light Assault Rifle Ballistic Cannon Assault Cannon Launcher Grenade Launcher Slashing Weapon Great Axe Build | -11 -10 -10 -10 -9 -8 -7 -7 -6 -5 -4 -4 -3 -2 ------- Run | Yrd Mat Min Exi Min Mat Fac DSF Fac Fac Fac DSF Res Res Slots Evolved 16 | . . . . . 4 2 . 2 2 2 . 2 2 Power 1 | . . . . . . 1 . . . . . . . Propulsion 7 | . . . . . 2 1 . . 1 1 . 2 . Utility 6 | . . . . . 1 . . 2 1 1 . . 1 Weapon 2 | . . . . . 1 . . . . . . . 1 Parts Attached 62 | 7 5 . . 3 7 1 6 19 2 . . 9 3 Power 8 | 1 . . . 1 1 . 1 2 1 . . 1 . Engine 5 | 1 . . . 1 1 . . 1 1 . . . . Core 2 | . . . . . . . 1 1 . . . . . Reactor 1 | . . . . . . . . . . . . 1 . Propulsion 22 | 2 3 . . 1 1 . 2 11 . . . 1 1 Treads 1 | . . . . . 1 . . . . . . . . Leg 6 | 2 3 . . 1 . . . . . . . . . Wheel 3 | . . . . . . . . 2 . . . 1 . Hover 1 | . . . . . . . . 1 . . . . . Flight 11 | . . . . . . . 2 8 . . . . 1 Utility 19 | 2 2 . . 1 1 . 3 4 1 . . 4 1 Device 9 | 1 . . . 1 . . 1 3 . . . 2 1 Storage 3 | 1 1 . . . . . . 1 . . . . . Processor 4 | . . . . . 1 . 2 . 1 . . . . Hackware 1 | . . . . . . . . . . . . 1 . Protection 2 | . 1 . . . . . . . . . . 1 . Artifact . | . . . . . . . . . . . . . . Weapon 13 | 2 . . . . 4 1 . 2 . . . 3 1 Energy Gun 4 | 1 . . . . 1 1 . . . . . . 1 Energy Cannon . | . . . . . . . . . . . . . . Ballistic Gun 2 | 1 . . . . 1 . . . . . . . . Ballistic Cannon 4 | . . . . . 1 . . 1 . . . 2 . Launcher 2 | . . . . . 1 . . . . . . 1 . Special Weapon . | . . . . . . . . . . . . . . Impact Weapon . | . . . . . . . . . . . . . . Slashing Weapon 1 | . . . . . . . . 1 . . . . . Piercing Weapon . | . . . . . . . . . . . . . . Special Melee Weapon . | . . . . . . . . . . . . . . Unidentified Prototypes 3 | . . . . . . . . 2 . . . 1 . Parts Lost 32 | . . 1 . 1 9 . . 6 . . 4 4 7 Power 4 | . . . . . 1 . . 2 . . . 1 . Propulsion 15 | . . 1 . . 4 . . 3 . . 3 1 3 Utility 9 | . . . . 1 1 . . 1 . . 1 1 4 Weapon 4 | . . . . . 3 . . . . . . 1 . Highest Loss Streak 5 | . . 1 . 1 5 . . 4 . . 4 5 4 To Critical Strikes . | . . . . . . . . . . . . . . Average Backups 12 | 1 6 7 7 7 3 3 3 2 4 5 17 25 33 Power . | . . . . . . . . . 1 . . . . Propulsion 1 | . 2 1 1 1 . . . . 1 . . 1 4 Utility 6 | . 2 4 4 5 3 2 2 1 . 1 10 15 16 Weapon 4 | 1 2 2 2 1 . . 1 1 1 4 7 8 12 Tool/Special . | . . . . . . . . . . . . . . Unused Backups 45 | . . . . 2 1 . . 2 . . 1 2 37 Power 1 | . . . . . . . . . . . . . 1 Propulsion 6 | . . . . . . . . 1 . . . . 5 Utility 23 | . . . . . 1 . . 1 . . . 1 20 Weapon 15 | . . . . 2 . . . . . . 1 1 11 Tool/Special . | . . . . . . . . . . . . . . Average Slot Usage (%) 71 | . 99 100 100 98 79 11 26 65 86 73 73 42 34 Engine 7 | . 14 14 14 14 8 . . 1 10 10 10 . . Leg 11 | . 28 28 28 28 14 . . . . . . . . Wheel 1 | . . . . . . . . 3 . . . 3 2 Flight 9 | . . . . . . . 5 21 34 36 36 12 11 Device 4 | . . . . 4 8 . 8 5 4 5 5 4 3 Storage 7 | . 14 14 14 14 8 . . . 5 5 5 4 3 Processor 6 | . . . . . 8 7 9 19 11 10 10 9 7 Protection 3 | . 12 14 14 8 . . . . . . . . . Energy Gun 6 | . 14 14 14 14 8 3 . 3 4 . . . . Ballistic Gun 5 | . 14 14 14 14 9 . . . . . . . . Ballistic Cannon 1 | . . . . . 5 . . 1 5 . . . . Slashing Weapon 1 | . . . . . . . . 3 5 5 5 3 . Peak Build Rating 92 | 9 9 8 11 14 19 12 21 73 89 87 90 92 85 Average Rating 40 | 5 7 7 9 11 17 6 13 37 86 83 88 76 77 On Entrance 33 | . 9 8 8 11 13 5 8 20 73 85 83 74 74 Avg Prop Armor Cover (%) 8 | . . . . . 6 . . 9 . . . 7 8 Naked Turns 1 | . . . . . . . . . . . . . 1 Heaviest Build 42 | 13 20 20 20 20 27 1 9 31 42 30 30 26 7 Greatest Support 34 | 20 20 20 20 20 30 3 6 26 30 34 34 22 22 Greatest Overweight (x) 3 | . . . . . 2 . 1 1 1 . . 3 . Average Overweight (x) . | . . . . . . . . . 1 . . . . Largest Inventory Capacity 40 | 8 10 10 10 10 10 5 5 40 40 40 40 40 40 Average Capacity 20 | 7 8 10 10 10 9 5 5 7 40 40 40 40 37 Most Carried 40 | 3 8 8 10 10 8 5 5 6 7 6 21 31 40 Average Carried 13 | 1 6 7 8 9 5 4 4 4 4 5 18 25 36 Final Capacity 40 | 8 10 10 10 10 5 5 5 40 40 40 40 40 5 Final Carried 30 | 3 8 7 10 9 5 5 5 6 6 6 21 30 4 Class Distribution -------------------- 32% | Mutant 18% | Hauler-Mutant 17% | Hauler-Scout 15% | Scavenger-Skirmisher 7% | Scavenger-Mutant 4% | Hauler-Assassin Dominant Class ---------------- Mutant | -10/Materials Mutant | -10/Mines Mutant | -10/Exiles Mutant | -9/Mines Scavenger-Skirmisher | -8/Materials Scavenger-Skirmisher | -7/Factory Mutant | -7/DSF Scavenger-Scout | -6/Factory Hauler-Assassin | -5/Factory Hauler-Scout | -4/Factory Hauler-Scout | -4/DSF Hauler-Scout | -3/Research Hauler-Mutant | -2/Research Resources | -11 -10 -10 -10 -9 -8 -7 -7 -6 -5 -4 -4 -3 -2 ----------- Run | Yrd Mat Min Exi Min Mat Fac DSF Fac Fac Fac DSF Res Res Matter Collected 1221 | 265 159 75 82 22 257 . 37 287 11 . . 26 . Remotely . | . . . . . . . . . . . . . . Salvage Created 1097 | 92 252 130 . . 450 . 37 110 6 . . 20 . Parts 91 | 8 19 12 . . 28 . 7 13 . . . 4 . Haulers Intercepted 1 | . 1 . . . . . . . . . . . . Recyclers Shooed 2 | . . . . . 2 . . . . . . . . Parts Field Recycled . | . . . . . . . . . . . . . . Retrieved Matter . | . . . . . . . . . . . . . . Parts Self-Destructed . | . . . . . . . . . . . . . . Prevented . | . . . . . . . . . . . . . . Parts Restored 1 | . . . . . . . . . . . . 1 . Broken 1 | . . . . . . . . . . . . 1 . Kills | -11 -10 -10 -10 -9 -8 -7 -7 -6 -5 -4 -4 -3 -2 ------- Run | Yrd Mat Min Exi Min Mat Fac DSF Fac Fac Fac DSF Res Res Combat Hostiles Destroyed 32 | . 4 9 . . 12 . 2 5 . . . . . Guns 17 | . 4 9 . . 1 . 2 1 . . . . . Cannons 8 | . . . . . 4 . . 4 . . . . . AOE 7 | . . . . . 7 . . . . . . . . Classes Destroyed 12 | 2 3 1 . . 3 . 1 1 1 . . . . Worker 2 | . . . . . . . . 2 . . . . . Builder 2 | . 1 . . . 1 . . . . . . . . Tunneler 3 | 1 . . . . . . . 1 . . . 1 . Hauler 1 | . 1 . . . . . . . . . . . . Recycler 2 | 1 . . . . 1 . . . . . . . . Operator 1 | . . . . . . . . . 1 . . . . Watcher 1 | . . . . . 1 . . . . . . . . Swarmer 15 | . . 9 . . 2 . . 4 . . . . . Cutter 3 | . . . . . . . 2 1 . . . . . Grunt 12 | . 4 . . . 8 . . . . . . . . Duelist 1 | . . . . . 1 . . . . . . . . Sentry 1 | . . . . . 1 . . . . . . . . Best Kill Streak 8 | 1 3 3 . . 8 . 2 4 1 . . 1 . Combat Bots Only 6 | . 3 3 . . 6 . 2 4 . . . . . Max Kills in Single Turn 2 | 1 1 1 . . 2 . 1 1 1 . . 1 . Gunslinging . | . . . . . . . . . . . . . . Exploded 1 | . . . . . 1 . . . . . . . . Melee . | . . . . . . . . . . . . . . Uniques/NPCs Destroyed . | . . . . . . . . . . . . . . Combat | -11 -10 -10 -10 -9 -8 -7 -7 -6 -5 -4 -4 -3 -2 -------- Run | Yrd Mat Min Exi Min Mat Fac DSF Fac Fac Fac DSF Res Res Hostile Shots Fired 536 | . 16 51 . 2 86 . 13 51 . . 45 82 190 Missed 225 | . 5 9 . . 23 . 7 13 . . 28 39 101 Hits 311 | . 11 42 . 2 63 . 6 38 . . 17 43 89 Melee 5 | . . . . . . . 3 . . . 2 . . Projectile 306 | . 11 42 . 2 63 . 3 38 . . 15 43 89 Critical Strikes 13 | . . . . . 6 . . . . . 1 . 6 Damage Taken 5593 | . 145 340 . 35 1026 . 170 706 . . 235 872 2064 Core 2534 | . 44 63 . 14 282 . 94 151 . . 33 390 1463 Absorbed by Shields . | . . . . . . . . . . . . . . Core Remaining (%) 79 | 100 . . . 51 48 . 86 82 100 . 97 70 . Volleys Fired 139 | 13 25 18 . 3 36 . 2 24 5 . . 9 4 Largest 3 | 2 2 2 . 2 3 . 1 2 2 . . 1 1 Hottest 113 | 60 60 60 . 60 113 . 69 113 113 . . 55 94 Shots Fired 267 | 26 50 36 . 6 91 . 2 35 8 . . 9 4 Gun 220 | 26 50 36 . 6 69 . 2 24 3 . . . 4 Cannon 34 | . . . . . 10 . . 11 5 . . 8 . Launcher 13 | . . . . . 12 . . . . . . 1 . Special . | . . . . . . . . . . . . . . Kinetic 130 | 13 25 18 . 3 47 . . 11 5 . . 8 . Thermal 124 | 13 25 18 . 3 32 . 2 24 3 . . . 4 Explosive 13 | . . . . . 12 . . . . . . 1 . Electromagnetic . | . . . . . . . . . . . . . . Robot Hit Streak 14 | 5 9 9 . 2 10 . 12 14 1 . . 1 3 Robot Miss Streak 6 | 3 2 3 . 5 6 . . 2 2 . . 1 1 Penetration Max . | . . . . . . . . . . . . . . Secondary Targets 2 | . . 2 . . . . . . . . . . . Max Gunslinging Chain 1 | . . 1 . . . . . . . . . . . Shots Hit Robots 167 | 16 34 21 . 1 61 . 2 25 2 . . 2 3 Core Hits 83 | 4 16 9 . . 38 . 2 9 1 . . 3 1 Critical Kills . | . . . . . . . . . . . . . . Critical Parts Destroyed . | . . . . . . . . . . . . . . Critical Strikes 2 | . . . . . . . . 2 . . . . . Burn 1 | . . . . . . . . 1 . . . . . Blast 1 | . . . . . . . . 1 . . . . . Melee Attacks 17 | . . . . . . . . 3 2 1 . 11 . Impact . | . . . . . . . . . . . . . . Slashing 17 | . . . . . . . . 3 2 1 . 11 . Piercing . | . . . . . . . . . . . . . . Sneak Attacks 3 | . . . . . . . . 2 . . . 1 . Combat Hostiles . | . . . . . . . . . . . . . . Follow-up Attacks . | . . . . . . . . . . . . . . Damage Inflicted 3541 | 175 308 242 . 12 1676 . 40 769 48 . . 168 103 Guns 1669 | 175 308 242 . 12 445 . 40 324 20 . . . 103 Cannons 574 | . . . . . 243 . . 262 28 . . 41 . Explosions 1045 | . . . . . 982 . . . . . . 63 . Melee 247 | . . . . . . . . 183 . . . 64 . Ramming 6 | . . . . . 6 . . . . . . . . Kinetic 1125 | 88 144 121 . . 441 . . 262 28 . . 41 . Thermal 1369 | 87 164 121 . 12 498 . 40 324 20 . . . 103 Explosive 794 | . . . . . 731 . . . . . . 63 . Electromagnetic . | . . . . . . . . . . . . . . Impact . | . . . . . . . . . . . . . . Slashing 247 | . . . . . . . . 183 . . . 64 . Piercing . | . . . . . . . . . . . . . . Highest Corruption 13 | . . . . . . . . 8 . . . . 13 Average Corruption 5 | . . . . . . . . 4 . . . . 8 Corruption Purged 3 | . . . . . . . . 3 . . . . . Corruption Blocked . | . . . . . . . . . . . . . . Effects 12 | . . . . . . . . 5 . . . . 7 Message Errors 2 | . . . . . . . . . . . . . 2 Matter Fused 4 | . . . . . . . . 3 . . . . 1 Heat Flow Errors 2 | . . . . . . . . 1 . . . . 1 Data Loss (minor) 2 | . . . . . . . . 1 . . . . 1 Misdirections 2 | . . . . . . . . . . . . . 2 Overload Shots . | . . . . . . . . . . . . . . Overflow Damage 260 | . . . . . 108 . . 123 18 . . 11 . Projectiles 89 | . . . . . . . . 60 18 . . 11 . Explosions 108 | . . . . . 108 . . . . . . . . Melee 63 | . . . . . . . . 63 . . . . . Knockbacks 7 | . . . . . 4 . . 1 1 . . 1 . Impact . | . . . . . . . . . . . . . . Kinetic 7 | . . . . . 4 . . 1 1 . . 1 . Secondary . | . . . . . . . . . . . . . . Self-Inflicted Damage 110 | . . . . . 110 . . . . . . . . Shots 4 | . . . . . 4 . . . . . . . . Rammed 2 | . . . . . 2 . . . . . . . . Targets Rammed 2 | . . . . . 2 . . . . . . . . Kicked . | . . . . . . . . . . . . . . Crushed . | . . . . . . . . . . . . . . Highest Temperature 261 | 40 148 106 . 40 261 . . 219 84 . . 26 223 Average Temperature 59 | 23 53 43 . 18 91 . . 49 37 . . 21 114 Received Heat Transfer 864 | . 78 . . 21 504 . . . . . 42 156 63 Siege Activations . | . . . . . . . . . . . . . . Martial Activations . | . . . . . . . . . . . . . . Shielding Activations . | . . . . . . . . . . . . . . Robots Disrupted . | . . . . . . . . . . . . . . Combat Hostiles . | . . . . . . . . . . . . . . Robots Corrupted . | . . . . . . . . . . . . . . Combat Hostiles . | . . . . . . . . . . . . . . Parts Fried . | . . . . . . . . . . . . . . Impact Corruptions . | . . . . . . . . . . . . . . Robots Melted . | . . . . . . . . . . . . . . Combat Hostiles . | . . . . . . . . . . . . . . Parts Melted 2 | . . . . . 1 . . 1 . . . . . Heat Transferred 2484 | 200 375 250 . 25 746 . 74 666 37 . . . 111 Parts Sabotaged . | . . . . . . . . . . . . . . Parts Stolen . | . . . . . . . . . . . . . . Parts Stripped . | . . . . . . . . . . . . . . Power Chain Reactions . | . . . . . . . . . . . . . . Alert | -11 -10 -10 -10 -9 -8 -7 -7 -6 -5 -4 -4 -3 -2 ------- Run | Yrd Mat Min Exi Min Mat Fac DSF Fac Fac Fac DSF Res Res Maximum Alert Level 1 | . . . . . 1 . . . . . . . . Low Security (%) 96 | 100 100 100 . 100 79 100 100 100 100 100 100 100 100 Level 1 3 | . . . . . 20 . . . . . . . . Level 2 . | . . . . . . . . . . . . . . Level 3 . | . . . . . . . . . . . . . . Level 4 . | . . . . . . . . . . . . . . Level 5 . | . . . . . . . . . . . . . . High Security . | . . . . . . . . . . . . . . Max Security . | . . . . . . . . . . . . . . Peak Influence 276 | 5 90 110 . 58 276 . 65 53 24 4 . 113 73 Initial 33 | . . 3 . . . . . 33 11 4 . . . Average 28 | . 41 37 . 8 89 . 33 12 12 . . 21 8 Influence Increases 1668 | 10 138 210 . 58 510 . 65 157 65 2 . 261 192 Destroy 0b10 Robot/C 700 | . 80 180 . 40 260 . 40 100 . . . . . Destroy 0b10 Robot/NC 60 | 10 10 . . . 15 . . 15 5 . . 5 . Destroy Leader 144 | . 12 30 . 10 72 . 10 10 . . . . . Allied During Kill 11 | . . . . 8 3 . . . . . . . . Successful Hack 143 | . 6 . . . 16 . . 28 24 . . 12 57 Disable Machine 105 | . . . . . 60 . . . 30 . . 15 . Destroy Structure 160 | . . . . . 84 . . 4 6 2 . 64 . Partial Spotted 15 | . . . . . . . . . . . . . 15 Lose Combat Pursuer 330 | . 30 . . . . . 15 . . . . 165 120 Influence Decreases 1651 | 10 130 118 100 58 510 . . 199 79 11 . 261 175 Entered New Map 154 | . . 5 100 . . . . 32 12 5 . . . Time Decay 1014 | 10 130 103 . 58 256 . . 117 67 6 . 142 125 Lost Part 220 | . . 10 . . 70 . . 50 . . . 40 50 Lost Ally 34 | . . . . . 34 . . . . . . . . Purge Threat 229 | . . . . . 150 . . . . . . 79 . Squads Dispatched 20 | . . . . . 4 . 1 2 1 . 3 4 5 Investigation 6 | . . . . . 2 . . . . . . 1 3 Extermination 4 | . . . . . . . . 1 . . . 1 2 Reinforcement 9 | . . . . . 1 . 1 1 1 . 3 2 . Assault . | . . . . . . . . . . . . . . Garrison 1 | . . . . . 1 . . . . . . . . Intercept . | . . . . . . . . . . . . . . Searches Triggered . | . . . . . . . . . . . . . . Construction Impeded 1 | . . . . . 1 . . . . . . . . Haulers Reinforced . | . . . . . . . . . . . . . . Active Scanning Responses . | . . . . . . . . . . . . . . Cargo Convoy Interrupts . | . . . . . . . . . . . . . . Stealth | -11 -10 -10 -10 -9 -8 -7 -7 -6 -5 -4 -4 -3 -2 --------- Run | Yrd Mat Min Exi Min Mat Fac DSF Fac Fac Fac DSF Res Res Distress Signals 7 | . 1 . . . 3 . . . . . . 1 2 Communications Jammed . | . . . . . . . . . . . . . . Distress Signals . | . . . . . . . . . . . . . . Times Spotted 106 | . 9 9 . 2 21 . 3 6 . . 11 14 31 Peak Tracking Total 20 | . 4 3 . 2 7 . 3 4 1 . 11 8 20 Tactical Retreats 11 | . 2 . . . . . 1 . . . . 4 4 Traps | -11 -10 -10 -10 -9 -8 -7 -7 -6 -5 -4 -4 -3 -2 ------- Run | Yrd Mat Min Exi Min Mat Fac DSF Fac Fac Fac DSF Res Res Traps Triggered 8 | . . . . . . . 2 3 . . 1 . 2 Indirectly . | . . . . . . . . . . . . . . Trap Hack Attempts . | . . . . . . . . . . . . . . Triggered . | . . . . . . . . . . . . . . Disarmed . | . . . . . . . . . . . . . . Reprogrammed . | . . . . . . . . . . . . . . Reused . | . . . . . . . . . . . . . . Traps Extracted . | . . . . . . . . . . . . . . Installed . | . . . . . . . . . . . . . . Triggered . | . . . . . . . . . . . . . . Machines | -11 -10 -10 -10 -9 -8 -7 -7 -6 -5 -4 -4 -3 -2 ---------- Run | Yrd Mat Min Exi Min Mat Fac DSF Fac Fac Fac DSF Res Res Machines Disabled 7 | . . . . . 4 . . . 2 . . 1 . Max in Single Turn 2 | . . . . . 2 . . . 1 . . 1 . Machines Repaired . | . . . . . . . . . . . . . . Machines Dismantled . | . . . . . . . . . . . . . . Machines Sabotaged . | . . . . . . . . . . . . . . Overloaded Fab Kills . | . . . . . . . . . . . . . . Hacking | -11 -10 -10 -10 -9 -8 -7 -7 -6 -5 -4 -4 -3 -2 --------- Run | Yrd Mat Min Exi Min Mat Fac DSF Fac Fac Fac DSF Res Res Machines Accessed 26 | . 1 . 1 . 3 1 . 5 1 1 . 4 9 Terminals 15 | . 1 . . . 3 1 . 3 1 1 . 1 4 Fabricators 2 | . . . . . . . . 1 . . . . 1 Repair Stations . | . . . . . . . . . . . . . . Recycling Units 3 | . . . . . . . . . . . . 1 2 Scanalyzers 4 | . . . . . . . . 1 . . . 2 1 Garrison Access 1 | . . . . . . . . . . . . . 1 Total Hacks 56 | . 1 . 1 . 9 1 . 13 1 3 . 8 19 Successful 24 | . 1 . 1 . 3 1 . 5 1 1 . 2 9 Failed 32 | . . . . . 6 . . 8 . 2 . 6 10 Catastrophic 12 | . . . . . . . . 4 . . . 3 5 Database Lockouts . | . . . . . . . . . . . . . . Manual 21 | . 1 . 1 . . . . 10 1 . . . 8 Terminals 36 | . 1 . . . 9 1 . 10 1 3 . 2 9 Fabricators 5 | . . . . . . . . 1 . . . . 4 Repair Stations . | . . . . . . . . . . . . . . Recycling Units 5 | . . . . . . . . . . . . 1 4 Scanalyzers 8 | . . . . . . . . 2 . . . 5 1 Garrison Access 1 | . . . . . . . . . . . . . 1 Terminal Hacks 12 | . 1 . 1 . 3 1 . 2 . 1 . 1 2 Part Schematic 1 | . . . . . . . . 1 . . . . . Robot Analysis 2 | . 1 . . . 1 . . . . . . . . Open DSF 2 | . . . . . . 1 . . . 1 . . . Unreport Threat 3 | . . . . . 1 . . 1 . . . 1 . Zone Layout 3 | . . . . . 1 . . . . . . . 2 Proto ID Catalog 1 | . . . 1 . . . . . . . . . . Fabricator Hacks 1 | . . . . . . . . . . . . . 1 Network Status 1 | . . . . . . . . . . . . . 1 Repair Station Hacks . | . . . . . . . . . . . . . . Recycling Unit Hacks 1 | . . . . . . . . . . . . . 1 Retrieve Matter 1 | . . . . . . . . . . . . . 1 Scanalyzer 2 | . . . . . . . . 1 . . . 1 . Insert Component 1 | . . . . . . . . . . . . 1 . Retrieve Study 1 | . . . . . . . . 1 . . . . . Garrison Access Hacks . | . . . . . . . . . . . . . . Unauthorized Hacks 8 | . . . . . . . . 2 1 . . . 5 Terminals 5 | . . . . . . . . 2 1 . . . 2 Botnet 5 | . . . . . . . . 2 1 . . . 2 Fabricators 3 | . . . . . . . . . . . . . 3 Report 1 | . . . . . . . . . . . . . 1 Liberate 1 | . . . . . . . . . . . . . 1 Fabnet 1 | . . . . . . . . . . . . . 1 Repair Stations . | . . . . . . . . . . . . . . Recycling Units . | . . . . . . . . . . . . . . Scanalyzers . | . . . . . . . . . . . . . . Garrison Access . | . . . . . . . . . . . . . . Data Cores Recovered . | . . . . . . . . . . . . . . Used . | . . . . . . . . . . . . . . Hacking Detections 20 | . . . . . 3 . . 5 . . . 4 8 Full Trace Events 5 | . . . . . 2 . . . . . . 1 2 Feedback Events . | . . . . . . . . . . . . . . Feedback Blocked . | . . . . . . . . . . . . . . Robot Schematics Acquired . | . . . . . . . . . . . . . . Robots Built . | . . . . . . . . . . . . . . Authchips . | . . . . . . . . . . . . . . Time . | . . . . . . . . . . . . . . Total Robot Build Rating . | . . . . . . . . . . . . . . Part Schematics Acquired 1 | . . . . . . . . 1 . . . . . Parts Built . | . . . . . . . . . . . . . . Authchips . | . . . . . . . . . . . . . . Time . | . . . . . . . . . . . . . . Total Part Build Rating . | . . . . . . . . . . . . . . Part Studies Acquired 1 | . . . . . . . . 1 . . . . . Parts Repaired . | . . . . . . . . . . . . . . Time . | . . . . . . . . . . . . . . Parts Recycled . | . . . . . . . . . . . . . . Recycled Matter . | . . . . . . . . . . . . . . Retrieved Matter . | . . . . . . . . . . . . . . Retrieved Components . | . . . . . . . . . . . . . . Parts Scanalyzed 1 | . . . . . . . . . . . . 1 . Part Schematics Acquired . | . . . . . . . . . . . . . . Parts Damaged 1 | . . . . . . . . . . . . 1 . Bothacking | -11 -10 -10 -10 -9 -8 -7 -7 -6 -5 -4 -4 -3 -2 ------------ Run | Yrd Mat Min Exi Min Mat Fac DSF Fac Fac Fac DSF Res Res Used RIF Installer . | . . . . . . . . . . . . . . Robots Hacked . | . . . . . . . . . . . . . . Non-combat . | . . . . . . . . . . . . . . Combat . | . . . . . . . . . . . . . . Robot Hacks Applied . | . . . . . . . . . . . . . . Relay Couplers Released . | . . . . . . . . . . . . . . Fabnet Peak Effective % . | . . . . . . . . . . . . . . Robots Rewired . | . . . . . . . . . . . . . . Allies Hacked . | . . . . . . . . . . . . . . Hacks Repelled . | . . . . . . . . . . . . . . Allies | -11 -10 -10 -10 -9 -8 -7 -7 -6 -5 -4 -4 -3 -2 -------- Run | Yrd Mat Min Exi Min Mat Fac DSF Fac Fac Fac DSF Res Res Total Allies 3 | . . . . 3 . . . . . . . . . Largest Group 3 | . . . . 3 3 . . . . . . . . Highest-Rated Group 40 | . . . . 40 40 . . . . . . . . Highest-Rated Ally 16 | . . . . 16 16 . . . . . . . . Total Orders 1 | . . . . . . . . 1 . . . . . EXPLORE 1 | . . . . . . . . 1 . . . . . Ally Attacks 28 | . . . . 19 9 . . . . . . . . Total Damage 236 | . . . . 186 50 . . . . . . . . Kills 3 | . . . . 2 1 . . . . . . . . Allies Corrupted . | . . . . . . . . . . . . . . Allies Melted . | . . . . . . . . . . . . . . Intel | -11 -10 -10 -10 -9 -8 -7 -7 -6 -5 -4 -4 -3 -2 ------- Run | Yrd Mat Min Exi Min Mat Fac DSF Fac Fac Fac DSF Res Res Active Infowar (turns) 1728 | 23 17 . . . 629 . 3 131 127 142 176 451 29 Terrain 1696 | 23 17 . . . 629 . . 131 127 142 176 451 . ECM 32 | . . . . . . . 3 . . . . . 29 Robot Analysis Total 2 | . 1 . . . 1 . . . . . . . . Derelict Logs Recovered 1 | . . . . 1 . . . . . . . . . Drone Launches 2 | . . . . . . . . 2 . . . . . Drone Recoveries 1 | . . . . . . . . 1 . . . . . Exploration | -11 -10 -10 -10 -9 -8 -7 -7 -6 -5 -4 -4 -3 -2 ------------- Run | Yrd Mat Min Exi Min Mat Fac DSF Fac Fac Fac DSF Res Res Turns Passed 4096 | 121 296 279 313 370 641 18 91 363 142 142 176 552 592 Spaces Moved 3346 | 62 163 186 261 274 256 29 68 364 121 99 70 458 935 Core 86 | 7 . . . . 22 29 22 . . . . 6 . Treads 121 | . . . . . 121 . . . . . . . . Legs 1052 | 55 163 186 261 274 113 . . . . . . . . Wheels . | . . . . . . . . . . . . . . Hover . | . . . . . . . . . . . . . . Flight 2087 | . . . . . . . 46 364 121 99 70 452 935 Fastest Speed 19 | 50 120 120 120 120 50 50 32 28 94 19 19 29 37 Average Speed 74 | 112 120 120 120 120 173 50 49 39 94 19 19 46 38 Slowest Speed 260 | 120 120 120 120 120 260 50 100 99 94 19 29 200 42 Overloaded Moves . | . . . . . . . . . . . . . . Propulsion Burnouts . | . . . . . . . . . . . . . . Robots Hopped 14 | . . . . . . . . . . . 1 2 11 Potential Cave-ins 5 | . . . . . . . . . . . . 5 . Cave-ins Triggered . | . . . . . . . . . . . . . . Exploration Rate (%) 30 | 3 36 48 61 74 21 1 65 11 3 2 51 16 28 Regions Visited 13 Branch Regions 3 Pre-discovered Areas . | . . . . . . . . . . . . . . Known Exits Taken 4 | . . . . . 1 1 . . 1 1 . . . Unknown Exits Taken 7 | 1 1 1 1 1 . . . 1 . . . 1 . Scrap Searched 1 | . . . . 1 . . . . . . . . . Spaces Dug 20 | . . . . . . . . 1 3 1 . 15 . Terrain Destroyed 183 | . . . . . 114 . . 3 4 1 . 61 . Melee 12 | . . . . . . . . 1 1 1 . 9 . Projectile 11 | . . . . . . . . 2 3 . . 6 . AOE 160 | . . . . . 114 . . . . . . 46 . Terrain Rammed . | . . . . . . . . . . . . . . Walls Destroyed . | . . . . . . . . . . . . . . Machines Disabled . | . . . . . . . . . . . . . . Actions | -11 -10 -10 -10 -9 -8 -7 -7 -6 -5 -4 -4 -3 -2 --------- Run | Yrd Mat Min Exi Min Mat Fac DSF Fac Fac Fac DSF Res Res Total 4666 | 86 217 209 261 311 382 31 121 538 137 220 231 767 1155 Wait 960 | 2 19 5 . 27 72 . 12 109 . 119 131 263 201 Move 3306 | 61 162 185 260 273 255 28 67 363 120 98 67 453 914 Hop 13 | . . . . . . . . . . . 1 2 10 Pick Up 61 | 3 3 . 1 1 1 . . 8 3 . 16 10 15 Fast Attach 45 | 7 1 . . 1 3 1 6 16 1 . . 6 3 Attach 21 | . . 1 . . 4 1 1 4 3 1 . 5 1 Detach 14 | . 1 . . . 1 1 1 1 2 1 . 5 1 Swap 10 | . 4 . . 2 2 . . 1 1 . . . . Drop 33 | . 2 . . 4 6 . 2 9 . . 1 3 6 Fire 139 | 13 25 18 . 3 36 . 2 24 5 . . 9 4 Melee 17 | . . . . . . . . 3 2 1 . 11 . Ram . | . . . . . . . . . . . . . . Kick . | . . . . . . . . . . . . . . Crush 2 | . . . . . 2 . . . . . . . . Escape Stasis 45 | . . . . . . . 30 . . . 15 . . Rewire . | . . . . . . . . . . . . . . Trap . | . . . . . . . . . . . . . . Miscellaneous . | . . . . . . . . . . . . . . Route ------- -11/Scrapyard -10/Materials -10/Mines (discovered 3 exits: [*Mat] / *Exi / [*Sub]) -10/Exiles -9/Mines -8/Materials -7/Factory -7/DSF -6/Factory -5/Factory -4/Factory -4/DSF -3/Research -2/Research (discovered 1 exit: *Tes) History --------- Turn | Location | Event 6 | -11/Scrapyard | Discovered new exit (range 15) 122 | -11/Scrapyard | Entered Materials 317 | -10/Materials | Build established: Mutant 411 | -10/Materials | Discovered new exit (range 6) 418 | -10/Materials | Entered Mines 507 | -10/Mines | Discovered new exit (range 6) 609 | -10/Mines | Discovered new exit (range 6) 691 | -10/Mines | Deemed a non-threat by the Exiles lab entrance 692 | -10/Mines | Discovered new exit (range 5) 697 | -10/Mines | Entered Exiles 727 | -10/Exiles | Met 8R-AWN 747 | -10/Exiles | Met EX-HEX 781 | -10/Exiles | Met EX-BIN 804 | -10/Exiles | Aligned with FarCom system 805 | -10/Exiles | Given EX-Vault access code 833 | -10/Exiles | Opened EX-Vault 841 | -10/Exiles | Found Lightpack 2.0 865 | -10/Exiles | Warned to stay clear of 0b10 Research branches 898 | -10/Exiles | Met EX-DEC 995 | -10/Exiles | Discovered new exit (range 14) 1010 | -10/Exiles | Left Exiles lab with Lightpack 2.0 1010 | -10/Exiles | Entered Mines 1037 | -9/Mines | Assisted by bots powering up and referring to "LRC-V3" 1352 | -9/Mines | Discovered new exit (range 8) 1380 | -9/Mines | Entered Materials 1380 | -8/Materials | Accompanied by 3 allies 1380 | -8/Materials | Evolved 4 slots: Propulsion x2, Utility x1, Weapon x1 1381 | -8/Materials | Identified exit to Factory 1533 | -8/Materials | Garrison activated, responded to threat 1626 | -8/Materials | Lost 4 parts (2n2w) 1690 | -8/Materials | Build established: Scavenger-Skirmisher 2019 | -8/Materials | Core integrity fell below 50% 2021 | -8/Materials | Entered Factory 2021 | -7/Factory | Evolved 2 slots: Power x1, Propulsion x1 2039 | -7/Factory | Identified exit to DSF 2039 | -7/Factory | Entered DSF 2041 | -7/DSF | Lost 5 parts (1p2n1u1w) 2066 | -7/DSF | Additional patrols routed to DSF 2127 | -7/DSF | Discovered new exit (range 11) 2130 | -7/DSF | Entered Factory 2130 | -6/Factory | Evolved 2 slots: Utility x2 2456 | -6/Factory | Lost 4 parts (1p2n1u) 2460 | -6/Factory | Discovered new exit (range 12) 2493 | -6/Factory | Entered another Factory area 2493 | -5/Factory | Evolved 2 slots: Propulsion x1, Utility x1 2589 | -5/Factory | Discovered new exit (range 14) 2632 | -5/Factory | Identified exit to Factory 2635 | -5/Factory | Entered another Factory area 2635 | -4/Factory | Evolved 2 slots: Propulsion x1, Utility x1 2777 | -4/Factory | Identified exit to DSF 2777 | -4/Factory | Entered DSF 2810 | -4/DSF | Additional patrols routed to DSF 2923 | -4/DSF | Build established: Hauler-Scout 2950 | -4/DSF | Discovered new exit (range 11) 2953 | -4/DSF | Entered Research 2953 | -3/Research | Evolved 2 slots: Propulsion x2 3003 | -3/Research | Lost 5 parts (4n1u) 3043 | -3/Research | Found Prototype Launcher 3043 | -3/Research | Identified Tactical Quantum Warhead 3446 | -3/Research | Found Prototype Processor 3493 | -3/Research | Discovered new exit (range 8) 3505 | -3/Research | Entered another Research area 3505 | -2/Research | Evolved 2 slots: Utility x1, Weapon x1 3516 | -2/Research | Discovered new exit (range 13) 3614 | -2/Research | Identified exit to Testing 3772 | -2/Research | Build established: Hauler-Mutant 3953 | -2/Research | Spotted B-90 Cyclops 3975 | -2/Research | Lost 3 parts (2n1u) 4040 | -2/Research | System corruption reached 10% 4060 | -2/Research | Core integrity fell below 50% 4088 | -2/Research | Core integrity fell below 20% 4097 | -2/Research | Destroyed by S-43 Plague with Heavy Machine Gun Last Messages --------------- 04070_ Penetrated by Slug. 04070_ Slug penetrates Door. 04070_ Penetrated by Slug. 04074_ System corrupted: Heat flow error (+267). 04081_ Slug penetrates Wall. 04082_ Impulse Thruster Array destroyed. 04087_ Slug penetrates Wall. 04087_ Slug penetrates Door. 04089_ Slug penetrates Wall. 04089_ Triggered Blade Trap. 04089_ Massive razor-sharp blades shoot up from within the floor. 04089_ Imp. Terrain Scan Processor severed. 04089_ Biomechanical Wings severed. 04090_ Acquired Biomechanical Wings. 04090_ Slug penetrates Wall. 04090_ Penetrated by Slug. 04092_ Slug penetrates Wall. 04092_ Penetrated by Slug. 04096_ Slug penetrates Wall. Map ----- +----------------------------------------------------+ | ???????????????????????????????????????????# | | ???????????????????????????????????????????# | | ??????????????????????????????###??????????# | | ??????????????????????????????# ????###########/# | | ??????????????????????????????# ???# | | ??????????????????????????????# ???# | | ??????????????????????????????# ??# | | ??????????????????????????????# [ ??# | | ??????????????????????????????# ?# ######## | | ??????????????????????????????# ?# # ?????? | | ??????????????????????????????# # # ?????? | | ??????????????????????????????# # /??????? | | ??????????????????????????????# + #??????? | | ??????????????????????????????# # #??????? | | ??????????????????????????????# # #??????? | | ??????????????????????????????# ?# s #??????? | | ???????????????????????Y?############# #??????? | | ?????????????????????????# # #??????? | | ?????????????????????????# # #??????? | | ?????????????????????????# """S""" # #??????? | | ?????????????????????????# """ """ #s s #??????? | | ?????????????????????????# #ss #??????? | | ??????????????????????????? ?#s #??????? | | ????????????????????????????? ???#s #??????? | | ????????????????# ##########+###### ####???? | | ????????????????+ @ ss # | | ????????????????# R # | | ????????????????# # | | ????????????????# h h # | | ????????????????#########+################### # | | ????????????????????????????????????????????? # | | ?????????????????????????????????????????????? # | | ??????????????????????????????????????????????? + | | ???????????????????????????????????????????????? # | | ?????????????????????????????????????????????????? | | ?????????????????????????????????????????????????? | | ?????????????????????????????????????????????????? | | ?????????????????????????????????????????????????? | | ?????????????????????????????????????????????????? | | ?????????????????????????????????????????????????? | | ?????????????????????????????????????????????????? | | ?????????????????????????????????????????????????? | | ?????????????????????????????????????????????????? | | ?????????????????????????????????????????????????? | | ?????????????????????????????????????????????????? | | ?????????????????????????????????????????????????? | | ?????????????????????????????????????????????????? | | ?????????????????????????????????????????????????? | | ?????????????????????????????????????????????????? | | ?????????????????????????????????????????????????? | +----------------------------------------------------+ Best States ------------- Heat Dissipation 49 Energy Generation 27 Energy Capacity 480 Matter Stores 300 Matter Capacity 300 Sight Range 16 Terrain Scan Range 20 Terrain Scan Density 285 ECM Strength 1 Armor Coverage 225 Evasion (%) 66 Recoil Reduction 1 Offensive Hacking 10 Authchip Count 12 Item Schematics ----------------- Surge Thruster | -6/Factory | Hacked Robot Schematics ------------------ None Fabricated ------------ Nothing Repaired ---------- Nothing Studied --------- Surge Thruster | -6/Factory | Hacked Alien Tech Used ----------------- None Achievements -------------- None Challenges ------------ None Game ------ Seed AlertServoBooster Manual? 0 Play Time 00:47:33 Cumulative 246.4 hours Start 2026.08.05 @ 15:52:40 End 2026.08.05 @ 16:38:46 Sessions 1 Manual Loads 0 Difficulty Rogue Special Mode None Game No. 327 Rogue 327 Adventurer 0 Explorer 0 Win Type - Total 4 Types 3/0/0/1/0/0/0/0/0/0 Lore% 78 Gallery% 65 Achievement% 52 Wizard Run 0 Options --------- Layout 2 ASCII 0 Keyboard 0 Movement Mouse Keybinds 0 Fullscreen 1 Font 24/Smallcaps Map View 50x44 Zoom Use 0% Tactical HUD 1 Map Filters NONE Filters NONE Steam 1 RUN: 70032ae6-46b3-410a-a843-2f4a4b62265b